{"text_format":"1","workbook":"xlsx","n_sheets":4,"sheets":["Инструкции","Вопросы","Результаты","Настройки"],"not_rendered":{"charts":2,"images":2,"macros":1,"external_links":0,"defined_names":1,"comments":0,"pivot_tables":0},"unopened":[],"bounds":{"document_bytes":16777216,"sheet_cells":100000,"rows_first":2000,"rows_last":500,"rows_between":2000,"halvings":0,"cell_chars":16384,"cell_head_chars":4096},"cells_cut":0,"cells_raw":0,"read":"whole","date_system":"1900"}

{"sheet":"Инструкции","index":0,"n_rows":13,"n_cols":2,"rows_kept":13,"cut":false,"hidden":false,"merged":[[28,2,30,8],[9,0,9,6],[0,0,0,6],[2,1,2,6],[3,1,3,6],[4,1,4,6],[5,1,5,6],[6,1,6,6],[7,1,7,6]]}
["Порядок работы:"]
[]
[1,"На листе \"Вопросы\" необходимо заполнить поля \"ФИО\" и \"Группа\""]
[2,"Ввод ответов на вопросы теста осуществляется путем выбора правильного варианта из списка "]
[3,"До тех пор, пока не введены все ответы результаты теста просмотреть не возможно"]
[4,"На листе \"Результаты\" помещается информация о количестве правильных и ошибочных ответов как в текстовой, так и в графической форме"]
[5,"В приведенном списке вопросов отмечаются красным цветом ошибочные ответы, а рядом помещаются правильные варианты."]
[6,"На основании подсчета правильных ответов выставляется оценка."]
[]
["Формирование списка вопросов"]
[null,"Количество вопросов: 10."]
[null,"Количество вариантов ответов: 3."]
[null,"Содержание вопросов не является фиксированным."]

{"sheet":"Вопросы","index":1,"n_rows":38,"n_cols":12,"rows_kept":38,"cut":false,"hidden":false,"merged":[[0,0,0,1]]}
["Тестирование"]
[]
[null,"ФИО"]
[null,"Группа"]
[]
["№","Вопрос","Ответ"]
[1,{"$f":"H7","v":"В каких направлениях совершается колебание частиц среды в продольной волне?"},null,null,null,null,{"$f":"IF(C7=L7,1,0)","v":0},{"$f":"Настройки!B1","v":"В каких направлениях совершается колебание частиц среды в продольной волне?"},{"$f":"Настройки!C2","v":"Только по направлению распространения волны."},{"$f":"Настройки!C3","v":"Во всех направлениях."},{"$f":"Настройки!C4","v":"Только перпендикулярно направлению распространения волны."},{"$f":"Настройки!D3","v":"Только по направлению распространения волны."}]
[2,{"$f":"H8","v":"Лодка качается на волнах, распространяющихся со скоростью 2,5 м/с. Расстояние между двумя ближайшими гребнями волн 10 м. Определите частоту колебаний лодки."},null,null,null,null,0,{"$f":"Настройки!B5","v":"Лодка качается на волнах, распространяющихся со скоростью 2,5 м/с. Расстояние между двумя ближайшими гребнями волн 10 м. Определите частоту колебаний лодки."},{"$f":"Настройки!C6","v":"0,5 Гц.                              "},{"$f":"Настройки!C7","v":"0,25 Гц.                    "},{"$f":"Настройки!C8","v":"1,5 Гц."},{"$f":"Настройки!D7","v":"0,25 Гц.                    "}]
[3,"С какой скоростью распространяется волна, если за 20 с волны совершили 50 колебаний? Длина волны равна 2 м.",null,null,null,null,0,{"$f":"Настройки!B9","v":"С какой скоростью распространяется волна, если за 20 с волны совершили 50 колебаний? Длина волны равна 2 м."},{"$f":"Настройки!C10","v":"5м/с.                                  "},{"$f":"Настройки!C11","v":"2 м/с.                       "},{"$f":"Настройки!C12","v":"1м/с."},{"$f":"Настройки!D11","v":"5м/с.                                  "}]
[4,"От чего зависит длина волны?",null,null,null,null,0,{"$f":"Настройки!B13","v":"От чего зависит длина волны?"},{"$f":"Настройки!C14","v":"От скорости и частоты колебания."},{"$f":"Настройки!C15","v":"От среды, в которой распространяется."},{"$f":"Настройки!C16","v":"От частоты вибрации."},{"$f":"Настройки!D15","v":"От скорости и частоты колебания."}]
[5,"Если колебания происходят перпендикулярно направлению распространения волны, то такая волна называется:",null,null,null,null,0,{"$f":"Настройки!B17","v":"Если колебания происходят перпендикулярно направлению распространения волны, то такая волна называется:"},{"$f":"Настройки!C18","v":"Плоской."},{"$f":"Настройки!C19","v":"Продольной."},{"$f":"Настройки!C20","v":"Поперечной."},{"$f":"Настройки!D19","v":"Поперечной."}]
[6,"Какие волны возникают в струнах при игре на гитаре?",null,null,null,null,0,{"$f":"Настройки!B21","v":"Какие волны возникают в струнах при игре на гитаре?"},{"$f":"Настройки!C22","v":"Сферические."},{"$f":"Настройки!C23","v":"Поперечные."},{"$f":"Настройки!C24","v":"Продольные."},{"$f":"Настройки!D23","v":"Поперечные."}]
[7,"Волны возбуждаемые смычком в воздухе, при игре на скрипке, является:",null,null,null,null,0,{"$f":"Настройки!B25","v":"Волны возбуждаемые смычком в воздухе, при игре на скрипке, является:"},{"$f":"Настройки!C26","v":"Продольными."},{"$f":"Настройки!C27","v":"Крутыми."},{"$f":"Настройки!C28","v":"Поперечными."},{"$f":"Настройки!D27","v":"Продольными."}]
[8,"Какие из перечисленных свойств относятся к поперечным волнам?",null,null,null,null,0,{"$f":"Настройки!B29","v":"Какие из перечисленных свойств относятся к поперечным волнам?"},{"$f":"Настройки!C30","v":"Эти волны представляют собой чередующиеся сжатия и разрежения."},{"$f":"Настройки!C31","v":"Эти волны могут распространяться только в твердых телах."},{"$f":"Настройки!C32","v":"В этой волне колебания совершаются перпендикулярно направлению распространения волны."},{"$f":"Настройки!D31","v":"Эти волны могут распространяться только в твердых телах."}]
[9,"Колебания, распространяющиеся в пространстве с течением времени называются:",null,null,null,null,0,{"$f":"Настройки!B33","v":"Колебания, распространяющиеся в пространстве с течением времени называются:"},{"$f":"Настройки!C34","v":"Вибрацией."},{"$f":"Настройки!C35","v":"Дрожанием."},{"$f":"Настройки!C36","v":"Волной."},{"$f":"Настройки!D35","v":"Волной."}]
[10,"Поперечные волны могут распространяться",null,null,null,null,0,{"$f":"Настройки!B37","v":"Поперечные волны могут распространяться"},{"$f":"Настройки!C38","v":"Только в твёрдых телах"},{"$f":"Настройки!C39","v":"Во всех средах"},{"$f":"Настройки!C40","v":"Только в жидкостях"},{"$f":"Настройки!D39","v":"Только в твёрдых телах"}]
[null,null,null,null,null,null,{"$f":"SUM(G7:G16)","v":0},{"$f":"10-G17","v":10}]
[]
[]
[]
[]
[]
[]
[]
[]
[]
[]
[]
[]
[null,null,null,null,null,null,{"$f":"SUM(G17:G29)","v":0},{"$f":"10-G30","v":10}]
[]
[]
[]
[]
[]
[]
[]
[null,null,null,null,null,null,{"$f":"IF(C38=L38,1,0)","v":1},{"$f":"Настройки!B47","v":0},{"$f":"Настройки!C48","v":0},{"$f":"Настройки!C49","v":0}]

{"sheet":"Результаты","index":2,"n_rows":17,"n_cols":5,"rows_kept":17,"cut":false,"hidden":false,"merged":[[2,0,2,1],[3,0,3,1],[0,0,0,1],[1,0,1,1]]}
["Результаты теста"]
[{"$f":"Вопросы!C3&\" группа № \"&Вопросы!C4","v":" группа № "},null,{"$f":"COUNTIF(Вопросы!C7:C16,\"\")","v":10}]
[{"$f":"\"Правильные ответы: \"&D3","v":"Правильные ответы: 0"},null,"Правильно",{"$f":"IF(C2<>0,0,Вопросы!G17)","v":0}]
[{"$f":"\"Допущенные ошибки: \"&D4","v":"Допущенные ошибки: 0"},null,"Ошибочно",{"$f":"IF(C2<>0,0,Вопросы!H17)","v":0}]
["№","Вопрос","Ваш \nответ","Правильный \nответ"]
[1,{"$f":"Вопросы!B7","v":"В каких направлениях совершается колебание частиц среды в продольной волне?"},{"$f":"IF(C2<>0,\" \",Вопросы!C7)","v":" "},{"$f":"IF($C$2<>0,\"\",IF(Вопросы!G7<>1,Настройки!D3,\"\"))","v":""},{"$f":"Вопросы!L7","v":"Только по направлению распространения волны."}]
[2,{"$f":"Вопросы!B8","v":"Лодка качается на волнах, распространяющихся со скоростью 2,5 м/с. Расстояние между двумя ближайшими гребнями волн 10 м. Определите частоту колебаний лодки."},{"$f":"IF(C2<>0,\" \",Вопросы!C8)","v":" "},{"$f":"IF($C$2<>0,\"\",IF(Вопросы!G8<>1,Настройки!D7,\"\"))","v":""},{"$f":"Вопросы!L8","v":"0,25 Гц.                    "}]
[3,{"$f":"Вопросы!B9","v":"С какой скоростью распространяется волна, если за 20 с волны совершили 50 колебаний? Длина волны равна 2 м."},{"$f":"IF(C2<>0,\" \",Вопросы!C9)","v":" "},{"$f":"IF(C2<>0,\"\",IF(Вопросы!G9<>1,Настройки!D11,\"\"))","v":""},{"$f":"Вопросы!L9","v":"5м/с.                                  "}]
[4,{"$f":"Вопросы!B10","v":"От чего зависит длина волны?"},{"$f":"IF(C2<>0,\" \",Вопросы!C10)","v":" "},{"$f":"IF(C2<>0,\"\",IF(Вопросы!G10<>1,Настройки!D15,\"\"))","v":""},{"$f":"Вопросы!L10","v":"От скорости и частоты колебания."}]
[5,{"$f":"Вопросы!B11","v":"Если колебания происходят перпендикулярно направлению распространения волны, то такая волна называется:"},{"$f":"IF(C2<>0,\" \",Вопросы!C11)","v":" "},{"$f":"IF(C2<>0,\"\",IF(Вопросы!G11<>1,Настройки!D19,\"\"))","v":""},{"$f":"Вопросы!L11","v":"Поперечной."}]
[6,{"$f":"Вопросы!B12","v":"Какие волны возникают в струнах при игре на гитаре?"},{"$f":"IF(C2<>0,\" \",Вопросы!C12)","v":" "},{"$f":"IF(C2<>0,\"\",IF(Вопросы!G12<>1,Настройки!D23,\"\"))","v":""},{"$f":"Вопросы!L12","v":"Поперечные."}]
[7,{"$f":"Вопросы!B13","v":"Волны возбуждаемые смычком в воздухе, при игре на скрипке, является:"},{"$f":"IF(C2<>0,\" \",Вопросы!C13)","v":" "},{"$f":"IF(C2<>0,\"\",IF(Вопросы!G13<>1,Настройки!D27,\"\"))","v":""},{"$f":"Вопросы!L13","v":"Продольными."}]
[8,{"$f":"Вопросы!B14","v":"Какие из перечисленных свойств относятся к поперечным волнам?"},{"$f":"IF(C2<>0,\" \",Вопросы!C14)","v":" "},{"$f":"IF(C2<>0,\"\",IF(Вопросы!G14<>1,Настройки!D31,\"\"))","v":""},{"$f":"Вопросы!L14","v":"Эти волны могут распространяться только в твердых телах."}]
[9,{"$f":"Вопросы!B15","v":"Колебания, распространяющиеся в пространстве с течением времени называются:"},{"$f":"IF(C2<>0,\" \",Вопросы!C15)","v":" "},{"$f":"IF(C2<>0,\"\",IF(Вопросы!G15<>1,Настройки!D35,\"\"))","v":""},{"$f":"Вопросы!L15","v":"Волной."}]
[10,{"$f":"Вопросы!B16","v":"Поперечные волны могут распространяться"},{"$f":"IF(C2<>0,\" \",Вопросы!C16)","v":" "},{"$f":"IF(C2<>0,\"\",IF(Вопросы!G16<>1,Настройки!D39,\"\"))","v":""},{"$f":"Вопросы!L16","v":"Только в твёрдых телах"}]
[null,{"$f":"IF(C2<>0,\"Вы ответили не на все вопросы!!! Осталось \"&C2&\" из 10\",\"\")","v":"Вы ответили не на все вопросы!!! Осталось 10 из 10"}]
[null,null,null,{"$f":"IF(C2<>0,\"\",IF(D3>=9,5,IF(D3>=7,4,IF(D3>=5,3,2))))","v":""}]

{"sheet":"Настройки","index":3,"n_rows":40,"n_cols":4,"rows_kept":40,"cut":false,"hidden":true,"merged":[]}
[1,"В каких направлениях совершается колебание частиц среды в продольной волне?"]
[null,1,"Только по направлению распространения волны.",{"$f":"MATCH(1,B2:B4,0)","v":1}]
[null,null,"Во всех направлениях.",{"$f":"INDEX(C2:C4,D2)","v":"Только по направлению распространения волны."}]
[null,null,"Только перпендикулярно направлению распространения волны."]
[2,"Лодка качается на волнах, распространяющихся со скоростью 2,5 м/с. Расстояние между двумя ближайшими гребнями волн 10 м. Определите частоту колебаний лодки."]
[null,null,"0,5 Гц.                              ",{"$f":"MATCH(1,B6:B8,0)","v":2}]
[null,1,"0,25 Гц.                    ",{"$f":"INDEX(C6:C8,D6)","v":"0,25 Гц.                    "}]
[null,null,"1,5 Гц."]
[3,"С какой скоростью распространяется волна, если за 20 с волны совершили 50 колебаний? Длина волны равна 2 м."]
[null,1,"5м/с.                                  ",{"$f":"MATCH(1,B10:B12,0)","v":1}]
[null,null,"2 м/с.                       ",{"$f":"INDEX(C10:C12,D10)","v":"5м/с.                                  "}]
[null,null,"1м/с."]
[4,"От чего зависит длина волны?"]
[null,1,"От скорости и частоты колебания.",{"$f":"MATCH(1,B14:B16,0)","v":1}]
[null,null,"От среды, в которой распространяется.",{"$f":"INDEX(C14:C16,D14)","v":"От скорости и частоты колебания."}]
[null,null,"От частоты вибрации."]
[5,"Если колебания происходят перпендикулярно направлению распространения волны, то такая волна называется:"]
[null,null,"Плоской.",{"$f":"MATCH(1,B18:B20,0)","v":3}]
[null,null,"Продольной.",{"$f":"INDEX(C18:C20,D18)","v":"Поперечной."}]
[null,1,"Поперечной."]
[6,"Какие волны возникают в струнах при игре на гитаре?"]
[null,null,"Сферические.",{"$f":"MATCH(1,B22:B24,0)","v":2}]
[null,1,"Поперечные.",{"$f":"INDEX(C22:C24,D22)","v":"Поперечные."}]
[null,null,"Продольные."]
[7,"Волны возбуждаемые смычком в воздухе, при игре на скрипке, является:"]
[null,1,"Продольными.",{"$f":"MATCH(1,B26:B28,0)","v":1}]
[null,null,"Крутыми.",{"$f":"INDEX(C26:C28,D26)","v":"Продольными."}]
[null,null,"Поперечными."]
[8,"Какие из перечисленных свойств относятся к поперечным волнам?"]
[null,null,"Эти волны представляют собой чередующиеся сжатия и разрежения.",{"$f":"MATCH(1,B30:B32,0)","v":2}]
[null,1,"Эти волны могут распространяться только в твердых телах.",{"$f":"INDEX(C30:C32,D30)","v":"Эти волны могут распространяться только в твердых телах."}]
[null,null,"В этой волне колебания совершаются перпендикулярно направлению распространения волны."]
[9,"Колебания, распространяющиеся в пространстве с течением времени называются:"]
[null,null,"Вибрацией.",{"$f":"MATCH(1,B34:B36,0)","v":3}]
[null,null,"Дрожанием.",{"$f":"INDEX(C34:C36,D34)","v":"Волной."}]
[null,1,"Волной."]
[10,"Поперечные волны могут распространяться"]
[null,1,"Только в твёрдых телах",{"$f":"MATCH(1,B38:B40,0)","v":1}]
[null,null,"Во всех средах",{"$f":"INDEX(C38:C40,D38)","v":"Только в твёрдых телах"}]
[null,null,"Только в жидкостях"]